fUST/lending_fUST_20240807
["ID","MTS","AMOUNT","RATE_DAILY","PERIOD"]
[334323953,1722975052716,-874.737863,0.00038356,7]
[334323954,1722975052725,-874.737863,0.00038356,7]
[334323955,1722975052734,-4514.15,0.00038356,14]
[334323956,1722975052743,-874.737863,0.00038356,7]
[334323957,1722975052752,-500.0,0.00038356,14]
[334323958,1722975052762,-1955.81,0.00038356,14]
[334323959,1722975052771,-500.0,0.00038356,14]
[334323960,1722975052781,-874.737863,0.00038356,7]
[334323961,1722975052790,-874.737863,0.00038356,7]
[334323962,1722975052800,-649.61,0.00038356,14]
[334323963,1722975052810,-781.98,0.00038356,14]
[334323964,1722975052820,-874.73786,0.00038356,7]
[334323965,1722975052829,-151.0,0.00038356,7]
[334323966,1722975052838,-151.0,0.00038356,7]
[334323967,1722975052848,-151.0,0.00038356,7]
[334323968,1722975052858,-151.0,0.00038356,7]
[334323969,1722975052867,-500.0,0.00038356,14]
[334323970,1722975052876,-500.0,0.00038356,14]
[334323971,1722975052885,-501.45349389,0.00038356,14]
[334323972,1722975052895,-500.0,0.00038356,14]
[334323973,1722975052904,-774.94,0.00038356,14]
[334323974,1722975052914,-667.41,0.00038356,14]
[334323975,1722975052923,-529.84,0.00038356,14]
[334323976,1722975052932,-1838.83,0.00038356,14]
[334323977,1722975052942,-151.0,0.00038356,7]
[334323978,1722975052951,-151.0,0.00038356,7]
[334323979,1722975052964,-151.0,0.00038356,7]
[334323980,1722975052973,-500.0,0.00038356,14]
[334323981,1722975052982,-151.0,0.00038356,7]
[334323982,1722975052991,-151.0,0.00038356,7]
[334323983,1722975053000,-151.0,0.00038356,7]
[334323984,1722975053009,-151.0,0.00038356,7]
[334323985,1722975053018,-500.0,0.00038356,14]
[334323986,1722975053027,-151.0,0.00038356,15]
[334323987,1722975053037,-675.95,0.00038356,14]
[334323988,1722975053047,-151.0,0.00038356,15]
[334323989,1722975053056,-500.0,0.00038356,14]
[334323990,1722975053065,-500.0,0.00038356,14]
[334323991,1722975053075,-9540.76,0.00038356,14]
[334323992,1722975053084,-833.81,0.00038356,14]
[334323993,1722975053093,-850.1,0.00038356,14]
[334323994,1722975053103,-310.16263441,0.00038356,14]
[334323995,1722975053112,-500.0,0.00038356,14]
[334323996,1722975053122,-534.67819454,0.00038356,14]
[334323997,1722975053131,-503.50194211,0.00038356,14]
[334323998,1722975053141,-500.0,0.00038356,14]
[334323999,1722975053150,-500.0,0.00038356,14]
[334324000,1722975053159,-500.0,0.00038356,14]
[334324001,1722975053169,-500.0,0.00038356,14]
[334324002,1722975053178,-1311.207343,0.00038356,7]
[334324003,1722975053187,-4892.55,0.00038356,14]
[334324004,1722975053196,-1311.207343,0.00038356,7]
[334324005,1722975053206,-1311.207343,0.00038356,7]
[334324006,1722975053219,-1311.207343,0.00038356,7]
[334324007,1722975053228,-1311.207343,0.00038356,7]
[334324008,1722975053237,-1311.207343,0.00038356,7]
[334324009,1722975053246,-500.0,0.00038356,14]
[334324010,1722975053255,-1311.207343,0.00038356,7]
[334324011,1722975053264,-1311.207343,0.00038356,7]
[334324012,1722975053273,-1311.207343,0.00038356,7]
[334324013,1722975053283,-1311.207343,0.00038356,7]
[334324014,1722975053292,-1311.207343,0.00038356,7]
[334324015,1722975053301,-500.0,0.00038356,14]
[334324016,1722975053310,-1311.207343,0.00038356,7]
[334324017,1722975053319,-500.0,0.00038356,14]
[334324018,1722975053329,-5447.9,0.00038356,14]
[334324019,1722975053339,-1311.207343,0.00038356,7]
[334324020,1722975053350,-2828.69,0.00038356,14]
[334324021,1722975053360,-1311.207343,0.00038356,7]
[334324022,1722975053369,-1311.207343,0.00038356,7]
[334324023,1722975053378,-1311.207343,0.00038356,7]
[334324024,1722975053388,-507.19073309,0.00038356,14]
[334324025,1722975053397,-1311.207343,0.00038356,7]
[334324026,1722975053406,-1311.207343,0.00038356,7]
[334324027,1722975053415,-1311.207343,0.00038356,7]
[334324028,1722975053425,-1311.207349,0.00038356,7]
[334324029,1722975053434,-500.0,0.00038356,14]
[334324030,1722975053444,-500.0,0.00038356,14]
[334324031,1722975053454,-500.0,0.00038356,14]
[334324032,1722975053469,-500.0,0.00038356,14]
[334324033,1722975053479,-500.0,0.00038356,14]
[334324034,1722975053488,-500.0,0.00038356,14]
[334324035,1722975053498,-500.0,0.00038356,14]
[334324036,1722975053508,-1000.0,0.00038356,90]
[334324037,1722975053518,-2374.01,0.00038356,14]
[334324038,1722975053528,-500.0,0.00038356,14]
[334324039,1722975053539,-2517.24,0.00038356,14]
[334324040,1722975053550,-603.25,0.00038356,14]
[334324041,1722975053559,-500.0,0.00038356,14]
[334324042,1722975053569,-1806.28,0.00038356,14]
[334324043,1722975053579,-500.0,0.00038356,14]
[334324044,1722975053588,-500.0,0.00038356,14]
[334324045,1722975053597,-752.49,0.00038356,14]
[334324046,1722975053607,-500.0,0.00038356,14]
[334324047,1722975053616,-500.0,0.00038356,14]
[334324048,1722975053626,-644.99655362,0.00038356,14]
[334324049,1722975053635,-2995.12,0.00038356,14]
[334324050,1722975053644,-1151.08,0.00038356,14]
[334324051,1722975053653,-644.83262971,0.00038356,14]
[334324052,1722975053824,-500.0,0.00038356,14]
[334324053,1722975053834,-500.0,0.00038356,14]
[334324054,1722975053843,-960.017243,0.00038356,7]
[334324055,1722975053852,-960.017243,0.00038356,7]
[334324056,1722975053862,-960.017243,0.00038356,7]
[334324057,1722975053871,-960.017243,0.00038356,7]
[334324058,1722975053881,-960.017243,0.00038356,7]
[334324059,1722975053890,-2000.0,0.00038356,14]
[334324060,1722975053899,-960.017243,0.00038356,7]
[334324061,1722975053909,-960.017243,0.00038356,7]
[334324062,1722975053918,-960.017243,0.00038356,7]
[334324063,1722975053928,-500.0,0.00038356,14]
[334324064,1722975053938,-500.0,0.00038356,14]
[334324065,1722975053947,-500.0,0.00038356,14]
[334324066,1722975053956,-500.0,0.00038356,14]
[334324067,1722975053971,-960.017243,0.00038356,7]
[334324068,1722975053980,-1147.48,0.00038356,14]
[334324069,1722975053989,-960.017243,0.00038356,7]
[334324070,1722975053999,-500.0,0.00038356,14]
[334324071,1722975054009,-960.017243,0.00038356,7]
[334324072,1722975054018,-960.017243,0.00038356,7]
[334324073,1722975054027,-500.0,0.00038356,14]
[334324074,1722975054036,-960.017243,0.00038356,7]
[334324075,1722975054045,-500.0,0.00038356,14]
[334324076,1722975054055,-960.017243,0.00038356,7]
[334324077,1722975054064,-3276.72,0.00038356,14]
[334324078,1722975054073,-960.017243,0.00038356,7]
[334324079,1722975054082,-960.017243,0.00038356,7]
[334324080,1722975054092,-960.017243,0.00038356,7]
[334324081,1722975054101,-960.017243,0.00038356,7]
[334324082,1722975054110,-960.017243,0.00038356,7]
[334324083,1722975054119,-960.017244,0.00038356,7]
[334324084,1722975054129,-500.33093009,0.00038356,14]
[334324085,1722975054142,-500.0,0.00038356,14]
[334324086,1722975054153,-1032.11,0.00038356,14]
[334324087,1722975054163,-1027.51,0.00038356,14]
[334324088,1722975054173,-3188.76,0.00038356,14]
[334324089,1722975054182,-500.0,0.00038356,14]
[334324090,1722975054191,-500.0,0.00038356,14]
[334324091,1722975054201,-500.0,0.00038356,14]
[334324092,1722975054213,-733.8,0.00038356,14]
[334324093,1722975054222,-5720.69,0.00038356,14]
[334324094,1722975054232,-638.68,0.00038356,14]
[334324095,1722975054242,-621.09,0.00038356,14]
[334324096,1722975054251,-500.0,0.00038356,14]
[334324097,1722975054260,-792.4,0.00038356,14]
[334324098,1722975054269,-3228.39,0.00038356,14]
[334324099,1722975054279,-500.0,0.00038356,14]
[334324100,1722975054288,-500.0,0.00038356,14]
[334324101,1722975054297,-500.0,0.00038356,14]
[334324102,1722975054307,-500.0,0.00038356,7]
[334324103,1722975054317,-683.84,0.00038356,14]
[334324104,1722975054326,-500.0,0.00038356,14]
[334324105,1722975054335,-1794.09669583,0.00038356,14]
[334324106,1722975110735,162.977463,0.00014247,2]
[334324111,1722975232509,729.4,0.00014247,2]
[334324117,1722975465112,150.0,0.00015,3]
[334324120,1722975610414,165.331271,0.00014247,2]
[334324126,1722975630489,664.2961566,0.00015954,2]
[334324128,1722975662672,156.73199194,0.00015954,2]
[334324131,1722975703177,209.95890543,0.00015954,2]
[334324133,1722975707913,807.96586902,0.00015954,2]
[334324139,1722975734574,356.53097519,0.00015954,2]
[334324145,1722975868811,154.77557542,0.00015954,2]
[334324146,1722975879799,205.1880395,0.00015954,2]
[334324148,1722976027161,-240.80307792,0.00016532,2]
[334324149,1722976027182,-191.92706188,0.00016788,2]
[334324150,1722976029143,-690.13570102,0.00016788,2]
[334324151,1722976031102,-2117.9372371,0.00016788,2]
[334324152,1722976031124,-300.0,0.00016891,2]
[334324153,1722976031148,-300.0,0.00016891,2]
[334324154,1722976031172,-364.66683671,0.00016892,2]
[334324155,1722976048129,-3112.34753022,0.00016892,2]
[334324156,1722976088706,273.37336231,9.9e-05,2]
[334324158,1722976111289,162.977463,0.00014247,2]
[334324160,1722976150167,-165.53506923,0.00016532,2]
[334324161,1722976150188,-1255.1390518,0.00016739,2]
[334324162,1722976150209,-300.0,0.00016891,2]
[334324163,1722976150231,-21422.98563307,0.00016892,2]
[334324165,1722976150251,-4110.44330417,0.00016919,2]
[334324166,1722976150272,-158.155036,0.00017233,2]
[334324167,1722976150292,-158.155036,0.0001728,2]
[334324168,1722976150313,-158.155036,0.00017327,2]
[334324169,1722976150334,-158.155036,0.00017375,2]
[334324170,1722976150355,-158.155036,0.00017422,2]
[334324171,1722976150376,-158.155036,0.00017469,2]
[334324172,1722976150396,-158.155036,0.00017516,2]
[334324173,1722976150417,-158.155036,0.00017564,2]
[334324174,1722976150438,-158.155036,0.00017611,2]
[334324175,1722976150460,-158.155036,0.00017658,2]
[334324176,1722976150481,-158.155036,0.00017705,2]
[334324177,1722976150502,-158.155036,0.00017753,2]
[334324178,1722976150527,-158.155036,0.000178,2]
[334324179,1722976150549,-158.155036,0.00017847,2]
[334324180,1722976150571,-158.155036,0.00017894,2]
[334324181,1722976150593,-158.155036,0.00017942,2]
[334324182,1722976150615,-158.155036,0.00017989,2]
[334324183,1722976150637,-158.155036,0.00018036,2]
[334324184,1722976150660,-158.155036,0.00018083,2]
[334324185,1722976150683,-158.155036,0.00018131,2]
[334324186,1722976150705,-420.0,0.0001858,2]
[334324188,1722976150727,-569.66022554,0.00018998,2]
[334324189,1722976150748,-500.0,0.00018998,2]
[334324190,1722976150770,-500.0,0.00018998,2]
[334324191,1722976150792,-500.91465747,0.00018998,2]
[334324192,1722976150814,-500.0,0.00018998,2]
[334324193,1722976150836,-500.0,0.00018998,2]
[334324194,1722976150857,-500.0,0.00018998,2]
[334324195,1722976150882,-500.0,0.00018998,2]
[334324196,1722976150905,-500.0,0.00018998,2]
[334324197,1722976150926,-500.0,0.00018998,2]
[334324198,1722976150950,-483.96108757,0.00018998,2]
[334324199,1722976150972,-460.96409221,0.00018998,2]
[334324200,1722976151005,-500.0,0.00018998,2]
[334324201,1722976151027,-500.0,0.00018998,2]
[334324202,1722976151053,-500.0,0.00018998,2]
[334324204,1722976151075,-500.0,0.00018998,2]
[334324205,1722976151096,-514.07986337,0.00018998,2]
[334324206,1722976151117,-500.0,0.00018998,2]
[334324207,1722976151138,-500.0,0.00018998,2]
[334324208,1722976151160,-500.0,0.00018998,2]
[334324209,1722976151182,-500.0,0.00018998,2]
[334324210,1722976151204,-500.0,0.00018998,2]
[334324211,1722976151224,-20762.30804091,0.00018999,2]
[334324212,1722976151246,-9643.98087226,0.00019101,2]
[334324213,1722976151266,-494.3368924,0.00019102,2]
[334324214,1722976151286,-1763.75242219,0.00019139,2]
[334324215,1722976151307,-356.37594639,0.00019147,2]
[334324216,1722976151328,-154.83742071,0.00019147,2]
[334324217,1722976151350,-5236.41679691,0.00019154,2]
[334324218,1722976151371,-568.56884199,0.00019177,2]
[334324219,1722976151392,-2162.90546762,0.00019451,2]
[334324220,1722976151413,-816.39879119,0.00019451,2]
[334324221,1722976151435,-196.50630212,0.00019451,2]
[334324222,1722976151461,-156.61103376,0.00019451,2]
[334324223,1722976151483,-1383.1311371,0.00019451,2]
[334324224,1722976151506,-532.14086008,0.00019477,2]
[334324225,1722976151532,-1091.69139402,0.00019477,2]
[334324226,1722976151556,-154.78330338,0.00019477,2]
[334324227,1722976151583,-154.78330338,0.00019477,2]
[334324228,1722976151604,-160.1642143,0.00019477,2]
[334324229,1722976151626,-154.77557542,0.00019477,2]
[334324230,1722976151647,-206.46148341,0.00019477,2]
[334324231,1722976151669,-154.77557542,0.00019477,2]
[334324232,1722976151691,-519.71041987,0.00019477,2]
[334324233,1722976151712,-942.61257937,0.00019477,2]
[334324234,1722976151736,-156.99277567,0.00019547,2]
[334324235,1722976151757,-727.52933543,0.00019547,2]
[334324236,1722976151778,-600.8534117,0.00019547,2]
[334324237,1722976151800,-154.77557542,0.00019547,2]
[334324238,1722976151821,-156.8188046,0.00019547,2]
[334324239,1722976151843,-209.86849569,0.00019547,2]
[334324240,1722976151870,-159.27209445,0.00019547,2]
[334324241,1722976151894,-849.39914621,0.00019547,2]
[334324242,1722976151918,-302.82380668,0.00019547,2]
[334324243,1722976151938,-188.2335741,0.00019999,2]
[334324244,1722976151960,-319.72766707,0.00019999,2]
[334324245,1722976151987,-342.05014288,0.00019999,2]
[334324246,1722976152008,-346.78874882,0.00019999,2]
[334324247,1722976152031,-413.01700224,0.00019999,2]
[334324248,1722976152054,-427.05357238,0.0002,2]
[334324249,1722976152076,-234.43475061,0.0002,2]
[334324250,1722976152097,-14221.80588628,0.0002,2]
[334324251,1722976152118,-154.89923821,0.0002028,2]
[334324252,1722976152329,-506.48190828,0.0002028,2]
[334324253,1722976152351,-201.4758121,0.0002028,2]
[334324254,1722976152372,-378.67407966,0.0002028,2]
[334324255,1722976152393,-521.86930577,0.0002028,2]
[334324256,1722976152414,-342.23486383,0.00020427,2]
[334324257,1722976152436,-485.04939556,0.00020427,2]
[334324258,1722976152458,-500.0,0.00020427,2]
[334324259,1722976152479,-500.0,0.00020427,2]
[334324260,1722976152501,-500.0,0.00020427,2]
[334324261,1722976152524,-500.0,0.00020427,2]
[334324262,1722976152545,-500.0,0.00020427,2]
[334324263,1722976152567,-500.0,0.00020427,2]
[334324264,1722976152590,-500.0,0.00020427,2]
[334324265,1722976152612,-275.01460896,0.00020427,2]
[334324266,1722976152635,-500.0,0.00020427,2]
[334324267,1722976152657,-23390.7054391,0.00020428,2]
[334324268,1722976152680,-424.2181938,0.00020438,2]
[334324269,1722976154127,-300.99621399,0.00016347,2]
[334324270,1722976154149,-154.69833824,0.00019147,2]
[334324271,1722976154173,-533.92328189,0.00019451,2]
[334324272,1722976154197,-235.12976849,0.00019477,2]
[334324273,1722976154218,-49.40360184,0.00019477,2]
[334324274,1722976160120,-131.07542736,0.00019477,2]
[334324275,1722976160143,-701.58626541,0.0002028,3]
[334324276,1722976160166,-162.7818062,0.00020438,2]
[334324277,1722976160187,-42347.64201934,0.00020475,2]
[334324278,1722976160209,-2849.31423163,0.00020475,2]
[334324279,1722976160289,-1643.15842058,0.00020475,7]
[334324280,1722976160323,-277.18370616,0.00020475,2]
[334324281,1722976160344,-1610.68802731,0.00020475,2]
[334324282,1722976160365,-1162.86940617,0.00020475,2]
[334324283,1722976160386,-7002.81077238,0.00020475,2]
[334324284,1722976160408,-424.7108497,0.00020475,2]
[334324285,1722976160428,-3087.63872233,0.00020475,2]
[334324286,1722976160449,-951.80625463,0.00020475,2]
[334324287,1722976160471,-1794.84907646,0.00020475,2]
[334324288,1722976160492,-2124.51614001,0.00020475,2]
[334324289,1722976160513,-269.84624055,0.00020721,2]
[334324290,1722976160537,-241.66818964,0.00020721,2]
[334324291,1722976160572,-661.57772459,0.00020899,2]
[334324292,1722976160592,-154.60575532,0.00020999,2]
[334324293,1722976160613,-528.87983458,0.00021,2]
[334324294,1722976160635,-659.43,0.0002119,3]
[334324295,1722976160656,-313.92831078,0.000212,30]
[334324296,1722976160676,-157.80579925,0.00021591,2]
[334324297,1722976160697,-427.0,0.00022481,2]
[334324298,1722976160718,-1318.86,0.0002256,3]
[334324299,1722976160740,-661.57772459,0.00025238,2]
[334324300,1722976160761,-305.57509004,0.0002739,2]
[334324301,1722976160783,-355.9365494,0.00029578,2]
[334324302,1722976170114,-256.78731711,0.00019167,2]
[334324303,1722976170188,153.47881308,0.00017269,2]
[334324304,1722976170212,203.84440981,0.00017269,2]
[334324343,1722976232365,-2575.67423815,0.00017019,2]
[334324345,1722976232377,-300.0,0.00017268,2]
[334324347,1722976232386,-2162.3049352,0.00017269,2]
[334324349,1722976232395,-376.68494956,0.00017269,2]
[334324350,1722976232404,-413.01700224,0.00017269,2]
[334324352,1722976232413,-196.4478657,0.00017269,2]
[334324354,1722976232423,-168.35383281,0.00017269,2]
[334324356,1722976232433,-519.53171862,0.00017269,2]
[334324357,1722976232443,-1382.72826394,0.00017269,2]
[334324359,1722976232453,-9117.16122738,0.00017269,2]
[334324373,1722976232917,-525.40068433,0.00017269,2]
[334324374,1722976232926,-1654.19632821,0.00017269,2]
[334324387,1722976238458,-723.37166933,0.00017269,2]
[334324388,1722976238470,-4623.17529604,0.00017269,2]
[334324389,1722976238479,-815.98691468,0.00017269,2]
[334324390,1722976238489,-1370.19330614,0.00017269,2]
[334324391,1722976238499,-236.0,0.00018855,2]
[334324392,1722976238509,-426.88096863,0.0002,2]
[334324393,1722976238518,-155.09698958,0.0002028,2]
[334324394,1722976238527,-274.70206336,0.00021916,2]
[334324395,1722976238537,-500.0,0.00027493,2]
[334324396,1722976238546,-279.34220704,0.00027493,2]
[334324397,1722976238558,-621.44273008,0.00027494,2]
[334324398,1722976238568,-305.64117519,0.00029578,2]
[334324399,1722976238578,-1085.38915119,0.00029854,2]
[334324400,1722976238588,-301.55860439,0.0003,2]
[334324401,1722976238598,-162.977463,0.00031781,2]
[334324402,1722976238609,-500.0,0.00032602,14]
[334324403,1722976238619,-927.38956385,0.00032984,7]
[334324404,1722976238632,-1202.70785079,0.00032984,60]
[334324405,1722976238641,-661.57772459,0.00033917,2]
[334324407,1722976238650,-950.67330587,0.00037,10]
[334324418,1722976238947,-4179.20921753,0.00037,10]
[334324419,1722976238973,-4870.6949813,0.00037,10]
[334324420,1722976238985,-1411.0,0.00037094,2]
[334324421,1722976238996,-271.3686162,0.0003726,2]
[334324422,1722976239007,-366.4812016,0.0003726,2]
[334324423,1722976239016,-500.0,0.00037862,14]
[334324424,1722976239026,-3177.68724717,0.00038064,2]
[334324425,1722976239035,-2456.99696394,0.00038246,5]
[334324426,1722976239044,-3177.68724718,0.00038252,2]
[334324427,1722976239053,-200.0,0.00038256,120]
[334324428,1722976239063,-661.57772459,0.00038256,2]
[334324429,1722976239073,-150.112233,0.000383,5]
[334324430,1722976239082,-150.112233,0.000383,8]
[334324431,1722976239092,-150.112233,0.000383,6]
[334324432,1722976239102,-150.112233,0.000383,8]
[334324433,1722976239112,-150.112233,0.000383,10]
[334324434,1722976239121,-23390.7054391,0.00038335,4]
[334324435,1722976239133,-329.72,0.00038336,3]
[334324436,1722976239142,-164.86,0.00038336,3]
[334324437,1722976239151,-494.59,0.00038336,3]
[334324438,1722976239161,-2820.52,0.00038336,3]
[334324439,1722976239170,-239.56440468,0.00038345,15]
[334324440,1722976239181,-500.0,0.00038345,15]
[334324441,1722976239190,-339.53457689,0.00038345,15]
[334324442,1722976239200,-500.0,0.00038345,15]
[334324443,1722976239210,-500.0,0.00038345,15]
[334324444,1722976239219,-500.0,0.00038345,15]
[334324445,1722976239228,-500.0,0.00038345,15]
[334324446,1722976239238,-1000.0,0.00038345,2]
[334324447,1722976239248,-1500.0,0.00038345,45]
[334324448,1722976239257,-500.0,0.00038345,14]
[334324449,1722976239267,-500.0,0.00038345,14]
[334324450,1722976239277,-500.0,0.00038345,14]
[334324451,1722976239286,-500.0,0.00038345,14]
[334324452,1722976239295,-500.0,0.00038345,14]
[334324453,1722976239305,-500.0,0.00038345,14]
[334324454,1722976239314,-187125.643513,0.00038346,4]
[334324455,1722976239323,-500.0,0.00038355,14]
[334324456,1722976239333,-250.92,0.00038355,14]
[334324457,1722976239342,-24153.24619176,0.00038356,21]
[334324458,1722976239352,-4377.15068806,0.00038356,21]
[334324459,1722976239361,-500.0,0.00038356,14]
[334324460,1722976239371,-500.0,0.00038356,14]
[334324461,1722976239382,-1077.29,0.00038356,14]
[334324462,1722976239391,-500.0,0.00038356,14]
[334324463,1722976239401,-500.0,0.00038356,14]
[334324464,1722976239411,-500.0,0.00038356,10]
[334324465,1722976239420,-515.64712586,0.00038356,14]
[334324466,1722976239430,-288.315345,0.00038356,7]
[334324467,1722976239440,-197.21383269,0.00038356,14]
[334324468,1722976239450,-500.0,0.00038356,14]
[334324469,1722976239460,-500.0,0.00038356,14]
[334324470,1722976239469,-905.54,0.00038356,14]
[334324471,1722976239478,-500.0,0.00038356,14]
[334324472,1722976239488,-500.0,0.00038356,14]
[334324473,1722976239497,-501.13,0.00038356,14]
[334324474,1722976239506,-875.91,0.00038356,14]
[334324475,1722976239516,-750.88,0.00038356,14]
[334324476,1722976239525,-500.0,0.00038356,14]
[334324477,1722976239534,-500.0,0.00038356,2]
[334324478,1722976239544,-500.0,0.00038356,14]
[334324479,1722976239555,-500.0,0.00038356,14]
[334324480,1722976239564,-500.0,0.00038356,14]
[334324481,1722976239574,-500.0,0.00038356,14]
[334324482,1722976239583,-366.92799022,0.00038356,14]
[334324483,1722976239593,-500.0,0.00038356,14]
[334324484,1722976239602,-500.0,0.00038356,14]
[334324485,1722976239612,-676.12,0.00038356,14]
[334324486,1722976239621,-500.0,0.00038356,14]
[334324487,1722976239633,-500.0,0.00038356,14]
[334324488,1722976239642,-500.0,0.00038356,14]
[334324489,1722976239652,-500.0,0.00038356,14]
[334324490,1722976239661,-500.0,0.00038356,14]
[334324491,1722976239671,-698.26,0.00038356,14]
[334324492,1722976239682,-500.0,0.00038356,14]
[334324493,1722976239691,-500.0,0.00038356,14]
[334324494,1722976239701,-1289.42,0.00038356,14]
[334324495,1722976239711,-500.0,0.00038356,14]
[334324496,1722976239720,-596.75848101,0.00038356,14]
[334324497,1722976239729,-572.66,0.00038356,14]
[334324498,1722976239739,-1808.16,0.00038356,14]
[334324499,1722976239749,-500.0,0.00038356,14]
[334324500,1722976239758,-500.0,0.00038356,14]
[334324501,1722976239768,-500.0,0.00038356,14]
[334324502,1722976239777,-516.63,0.00038356,14]
[334324503,1722976239787,-500.0,0.00038356,14]
[334324504,1722976239797,-639.52,0.00038356,14]
[334324505,1722976239807,-500.0,0.00038356,14]
[334324506,1722976239816,-500.0,0.00038356,14]
[334324507,1722976239826,-590.87130158,0.00038356,14]
[334324508,1722976239835,-590.77,0.00038356,14]
[334324509,1722976239855,-500.0,0.00038356,14]
[334324510,1722976239864,-500.0,0.00038356,14]
[334324512,1722976239873,-500.0,0.00038356,14]
[334324513,1722976239883,-500.0,0.00038356,14]
[334324514,1722976239893,-964.55,0.00038356,14]
[334324515,1722976239909,-522.41156185,0.00038356,14]
[334324516,1722976239919,-850.79,0.00038356,14]
[334324517,1722976239929,-500.0,0.00038356,14]
[334324519,1722976239939,-500.0,0.00038356,14]
[334324520,1722976239950,-500.0,0.00038356,14]
[334324521,1722976239960,-500.0,0.00038356,14]
[334324522,1722976239969,-500.0,0.00038356,14]
[334324523,1722976239983,-500.0,0.00038356,14]
[334324524,1722976239992,-500.0,0.00038356,14]
[334324525,1722976240002,-200.94,0.00038356,7]
[334324526,1722976240011,-500.0,0.00038356,14]
[334324527,1722976240021,-150.0,0.00038356,14]
[334324528,1722976240030,-500.0,0.00038356,14]
[334324529,1722976240040,-500.0,0.00038356,14]
[334324530,1722976240049,-500.0,0.00038356,14]
[334324531,1722976240058,-500.0,0.00038356,14]
[334324532,1722976240068,-500.0,0.00038356,14]
[334324533,1722976240077,-195.136467,0.00038356,14]
[334324534,1722976240086,-500.0,0.00038356,14]
[334324535,1722976240096,-500.0,0.00038356,14]
[334324537,1722976240106,-559.78943866,0.00038356,14]
[334324538,1722976240115,-500.0,0.00038356,14]
[334324539,1722976240125,-500.0,0.00038356,14]
[334324540,1722976240136,-500.0,0.00038356,14]
[334324541,1722976240145,-500.0,0.00038356,14]
[334324542,1722976240155,-500.0,0.00038356,14]
[334324543,1722976240164,-642.48,0.00038356,14]
[334324544,1722976240174,-500.0,0.00038356,14]
[334324545,1722976240184,-500.0,0.00038356,14]
[334324546,1722976240193,-500.0,0.00038356,14]
[334324547,1722976240202,-500.0,0.00038356,14]
[334324548,1722976240212,-500.0,0.00038356,14]
[334324549,1722976240221,-500.0,0.00038356,14]
[334324550,1722976240230,-503.53237447,0.00038356,14]
[334324551,1722976240240,-500.0,0.00038356,14]
[334324552,1722976240249,-599.91348007,0.00038356,14]
[334324553,1722976240260,-500.0,0.00038356,14]
[334324554,1722976240269,-500.0,0.00038356,14]
[334324555,1722976240279,-500.0,0.00038356,14]
[334324556,1722976240289,-506.00429424,0.00038356,14]
[334324557,1722976240299,-482.82430531,0.00038356,14]
[334324558,1722976240311,-500.0,0.00038356,14]
[334324559,1722976240321,-500.0,0.00038356,14]
[334324560,1722976240331,-518.91,0.00038356,14]
[334324561,1722976240341,-820.21,0.00038356,14]
[334324562,1722976240351,-500.0,0.00038356,14]
[334324565,1722976240361,-500.0,0.00038356,14]
[334324566,1722976240370,-500.0,0.00038356,14]
[334324567,1722976240381,-500.0,0.00038356,14]
[334324568,1722976240390,-500.0,0.00038356,14]
[334324569,1722976240400,-151.0,0.00038356,7]
[334324570,1722976240409,-500.0,0.00038356,14]
[334324571,1722976240418,-500.0,0.00038356,14]
[334324572,1722976240428,-500.0,0.00038356,14]
[334324573,1722976240438,-500.0,0.00038356,14]
[334324574,1722976240447,-500.0,0.00038356,14]